fUST/lending_fUST_20251215
["ID","MTS","AMOUNT","RATE_DAILY","PERIOD"]
[398502539,1765759401338,500.0,0.00013273,2]
[398502540,1765759401864,497.62601836,0.00013273,2]
[398502541,1765759403011,500.0,0.00013273,2]
[398502542,1765759403591,5000.0,0.000138,2]
[398502543,1765759418978,2448.11398164,0.000138,2]
[398502544,1765759419003,2551.88601836,0.000138,2]
[398502545,1765759427040,5000.0,0.000138,2]
[398502546,1765759442107,154.47,0.00012,2]
[398502547,1765759443065,2293.65398164,0.000138,2]
[398502548,1765759443090,2706.34601836,0.000138,2]
[398502550,1765759443965,500.0,0.00013699,2]
[398502551,1765759446398,500.0,0.00013699,2]
[398502552,1765759446647,500.0,0.00013273,2]
[398502553,1765759447251,500.0,0.00013273,2]
[398502554,1765759450889,5000.0,0.000138,2]
[398502555,1765759452766,293.66398164,0.00013273,2]
[398502556,1765759452793,206.33601836,0.00013273,2]
[398502557,1765759454713,500.0,0.00013273,2]
[398502558,1765759456611,500.0,0.00013273,2]
[398502559,1765759457005,500.0,0.00013699,2]
[398502560,1765759457327,500.0,0.00013699,2]
[398502561,1765759466482,5000.0,0.000138,2]
[398502563,1765759470334,218.13,7.003e-05,2]
[398502564,1765759470771,436.27,7.336e-05,2]
[398502565,1765759472036,654.4,7.67e-05,2]
[398502566,1765759472126,872.53,8.003e-05,2]
[398502567,1765759472303,818.68,8.337e-05,2]
[398502568,1765759472327,271.98,8.337e-05,2]
[398502569,1765759472472,1308.8,8.67e-05,2]
[398502570,1765759472936,1526.93,9.004e-05,2]
[398502571,1765759473351,1745.06,9.337e-05,2]
[398502572,1765759473766,1963.2,9.67e-05,2]
[398502573,1765759474171,2181.33,0.00010004,2]
[398502574,1765759488948,1002.71,0.0001369,2]
[398502575,1765759488970,3997.29,0.0001369,2]
[398502576,1765759498637,150.0,5.2e-07,2]
[398502577,1765759499660,150.0,5.2e-07,2]
[398502578,1765759500683,150.0,5.2e-07,2]
[398502579,1765759501777,150.0,5.2e-07,2]
[398502580,1765759502592,155.82,0.00012,2]
[398502581,1765759502711,155.82,0.000125,2]
[398502582,1765759502801,150.0,5.2e-07,2]
[398502583,1765759503080,155.82,0.00013,2]
[398502584,1765759503437,155.82,0.000135,2]
[398502585,1765759503830,150.0,5.2e-07,2]
[398502587,1765759504846,150.0,5.2e-07,2]
[398502588,1765759505955,150.0,5.2e-07,2]
[398502589,1765759507983,500.0,0.00013273,2]
[398502590,1765759511344,5000.0,0.0001369,2]
[398502591,1765759512112,300.0,0.00013673,2]
[398502592,1765759518395,500.0,0.00013273,2]
[398502593,1765759520148,2326.73,0.0001369,2]
[398502594,1765759520171,2673.27,0.0001369,2]
[398502597,1765759535322,5000.0,0.0001369,2]
[398502602,1765759546813,150.0,6.981e-05,2]
[398502603,1765759547254,278.27,7.313e-05,2]
[398502604,1765759547718,417.41,7.645e-05,2]
[398502605,1765759548062,556.55,7.978e-05,2]
[398502606,1765759548506,695.68,8.31e-05,2]
[398502607,1765759548891,228.83,8.643e-05,2]
[398502608,1765759548918,605.99,8.643e-05,2]
[398502609,1765759549331,973.95,8.975e-05,2]
[398502610,1765759549736,1113.09,9.308e-05,2]
[398502611,1765759550146,1252.23,9.64e-05,2]
[398502612,1765759550555,1391.36,9.972e-05,2]
[398502613,1765759557649,4663.39,0.0001369,2]
[398502614,1765759557672,336.61,0.0001369,2]
[398502617,1765759565216,155.75,0.00012,2]
[398502618,1765759565375,155.75,0.00013,2]
[398502619,1765759565509,5000.0,0.0001369,2]
[398502620,1765759567757,500.0,0.00013273,2]
[398502621,1765759570417,500.0,0.00013273,2]
[398502622,1765759572169,500.0,0.00013273,2]
[398502623,1765759577436,198.33946024,0.00013106,2]
[398502624,1765759581152,2653.56053976,0.0001369,2]
[398502625,1765759581175,2346.43946024,0.0001369,2]
[398502626,1765759582905,182.79800168,0.00013129,2]
[398502627,1765759589056,5000.0,0.0001369,2]
[398502628,1765759604732,5000.0,0.0001369,2]
[398502629,1765759612484,5000.0,0.0001369,2]
[398502630,1765759622202,0.01,0.00012,2]
[398502631,1765759622227,162.91,0.00012,2]
[398502632,1765759622561,162.92,0.000127,2]
[398502633,1765759622896,162.92,0.000133,2]
[398502634,1765759623746,150.0,7.892e-05,2]
[398502635,1765759623988,170.42,8.268e-05,2]
[398502636,1765759624281,255.62,8.644e-05,2]
[398502637,1765759624704,340.83,9.02e-05,2]
[398502638,1765759625114,426.04,9.395e-05,2]
[398502639,1765759625525,511.25,9.771e-05,2]
[398502640,1765759625949,596.45,0.00010147,2]
[398502641,1765759626370,681.66,0.00010523,2]
[398502642,1765759627160,766.87,0.00010899,2]
[398502643,1765759627409,852.08,0.00011275,2]
[398502644,1765759627650,4760.04,0.0001369,2]
[398502645,1765759627672,239.96,0.0001369,2]
[398502646,1765759632227,300.0,0.00013673,2]
[398502647,1765759636016,5000.0,0.0001369,2]
[398502648,1765759642004,500.0,0.00013273,2]
[398502649,1765759642710,583.64,0.00013273,2]
[398502650,1765759642832,500.0,0.00013273,2]
[398502651,1765759643721,500.0,0.00013273,2]
[398502652,1765759651265,2376.41,0.0001369,2]
[398502653,1765759651286,2623.59,0.0001369,2]
[398502657,1765759673899,5000.0,0.0001369,2]
[398502662,1765759682019,157.85,0.00012,2]
[398502663,1765759682410,157.85,0.000127,2]
[398502664,1765759683354,157.85,0.000133,2]
[398502665,1765759690056,500.0,0.00013273,2]
[398502666,1765759690898,500.0,0.00013273,2]
[398502667,1765759693229,500.0,0.00013273,2]
[398502668,1765759696430,3026.46,0.0001369,2]
[398502669,1765759696456,1973.54,0.0001369,2]
[398502670,1765759705500,299.7,7.834e-05,2]
[398502671,1765759705942,599.4,8.207e-05,2]
[398502672,1765759706585,899.1,8.58e-05,2]
[398502673,1765759706997,1198.81,8.953e-05,2]
[398502674,1765759707383,1498.51,9.327e-05,2]
[398502675,1765759707765,1798.21,9.7e-05,2]
[398502676,1765759708172,1732.74,0.00010073,2]
[398502677,1765759708196,365.17,0.00010073,2]
[398502678,1765759708564,2397.61,0.00010446,2]
[398502679,1765759709012,2697.31,0.00010819,2]
[398502680,1765759709351,2997.02,0.00011192,2]
[398502681,1765759718941,1542.9,0.0001369,2]
[398502682,1765759724451,211.55136343,0.00013103,2]
[398502683,1765759742701,154.06,0.000111,2]
[398502684,1765759743020,154.06,0.000118,2]
[398502685,1765759743594,154.06,0.000126,2]
[398502686,1765759743862,154.06,0.000133,2]
[398502687,1765759760010,169.01585629,9.277e-05,2]
[398502688,1765759760616,169.01585629,0.00013102,2]
[398502689,1765759763369,500.0,0.00013273,2]
[398502690,1765759763977,500.0,0.00013273,2]
[398502691,1765759781325,550.44,7.545e-05,2]
[398502692,1765759781737,1100.88,7.904e-05,2]
[398502693,1765759782149,1651.32,8.263e-05,2]
[398502694,1765759782583,2201.76,8.622e-05,2]
[398502695,1765759782967,2329.78692399,8.982e-05,2]
[398502696,1765759782992,422.41307601,8.982e-05,2]
[398502697,1765759783371,3302.64,9.341e-05,2]
[398502698,1765759784299,3853.08,9.7e-05,2]
[398502699,1765759784466,4403.52,0.00010059,2]
[398502700,1765759784624,4953.97,0.00010419,2]
[398502701,1765759785071,642.52,0.00010778,2]
[398502702,1765759785098,4861.89,0.00010778,2]
[398502704,1765759802338,154.16,0.000111,2]
[398502705,1765759802662,154.16,0.000117,2]
[398502706,1765759802971,154.16,0.000123,2]
[398502707,1765759804080,154.16,0.000128,2]
[398502708,1765759804357,154.16,0.000134,2]
[398502709,1765759809164,500.0,0.00013273,2]
[398502710,1765759809547,500.0,0.00013273,2]
[398502711,1765759810337,300.0,0.00013673,2]
[398502712,1765759814650,500.0,0.00013273,2]
[398502713,1765759814877,500.0,0.00013273,2]
[398502714,1765759818300,500.0,0.00013273,2]
[398502715,1765759819859,500.0,0.00013273,2]
[398502744,1765759832242,-454.49200259,0.0001369,2]
[398502802,1765759833131,-160.50799741,0.0001369,2]
[398502803,1765759833140,-3457.1,0.0001369,2]
[398502804,1765759833149,-300.0,0.00013697,2]
[398502805,1765759833158,-707.37503059,0.00013697,2]
[398502806,1765759833170,-104.62496941,0.00013697,2]
[398502808,1765759833179,-500.0,0.00013698,2]
[398502809,1765759833188,-500.0,0.00013698,2]
[398502810,1765759833201,-500.0,0.00013698,2]
[398502811,1765759833211,-500.0,0.00013698,2]
[398502813,1765759833220,-300.0,0.00013698,2]
[398502815,1765759833229,-290.7666793,0.00013698,2]
[398502817,1765759833239,-1853.326618,0.00013699,2]
[398502819,1765759833249,-500.0,0.00013699,2]
[398502821,1765759833258,-500.0,0.00013699,2]
[398502823,1765759833268,-500.0,0.00013699,2]
[398502825,1765759833278,-500.0,0.00013699,2]
[398502827,1765759833287,-500.0,0.00013699,2]
[398502829,1765759833296,-500.0,0.00013699,2]
[398502831,1765759833306,-500.0,0.00013721,2]
[398502833,1765759833316,-500.0,0.00013821,2]
[398502835,1765759833325,-807.50494845,0.00013821,2]
[398502837,1765759833334,-1000.0,0.00013821,2]
[398502839,1765759833343,-500.0,0.00013821,2]
[398502841,1765759833353,-9460.80181151,0.00013927,2]
[398502843,1765759833362,-153.12416274,0.00014126,2]
[398503051,1765759838289,-657.04325237,0.00014126,2]
[398503052,1765759838302,-188.83258489,0.00014126,2]
[398503053,1765759838311,-263.28598748,0.00014221,2]
[398503054,1765759838321,-1001.0,0.00014233,2]
[398503055,1765759838331,-500.0,0.0001424,2]
[398503056,1765759838340,-46.88142763,0.0001424,2]
[398503057,1765759838398,-453.11857237,0.0001424,2]
[398503058,1765759838407,-500.0,0.0001424,2]
[398503059,1765759838417,-500.0,0.0001424,2]
[398503060,1765759838426,-500.0,0.0001424,2]
[398503061,1765759838436,-500.0,0.0001424,2]
[398503062,1765759838445,-500.0,0.0001424,2]
[398503063,1765759838455,-636.47839002,0.0001424,2]
[398503064,1765759838465,-500.0,0.0001424,2]
[398503065,1765759838475,-500.0,0.0001424,2]
[398503066,1765759838484,-500.0,0.0001424,2]
[398503067,1765759838495,-500.0,0.0001424,2]
[398503068,1765759838505,-500.0,0.0001424,2]
[398503069,1765759838515,-393.6201758,0.0001424,2]
[398503070,1765759838524,-500.0,0.0001424,2]
[398503071,1765759838533,-500.0,0.0001424,2]
[398503072,1765759838543,-276.96963024,0.0001424,2]
[398503073,1765759838552,-500.0,0.0001424,2]
[398503074,1765759838561,-500.0,0.0001424,2]
[398503075,1765759838572,-243.7023039,0.0001424,2]
[398503076,1765759838583,-256.2976961,0.0001424,2]
[398503077,1765759838593,-326.121444,0.0001424,2]
[398503078,1765759838602,-500.0,0.0001424,2]
[398503079,1765759838611,-500.0,0.0001424,2]
[398503080,1765759838621,-500.0,0.0001424,2]
[398503081,1765759838631,-500.0,0.0001424,2]
[398503082,1765759838641,-500.0,0.0001424,2]
[398503083,1765759838650,-500.0,0.0001424,2]
[398503084,1765759838660,-500.0,0.0001424,2]
[398503085,1765759838670,-500.0,0.0001424,2]
[398503086,1765759838679,-500.0,0.0001424,2]
[398503087,1765759838688,-425.63748361,0.00014247,2]
[398503088,1765759838698,-1000.0,0.00014247,2]
[398503089,1765759838707,-300.0,0.00014264,2]
[398503090,1765759838716,-300.0,0.00014264,2]
[398503091,1765759838725,-300.0,0.00014264,2]
[398503092,1765759838734,-300.0,0.00014264,2]
[398503093,1765759838743,-300.0,0.00014264,2]
[398503094,1765759838751,-300.0,0.00014264,2]
[398503095,1765759838760,-300.0,0.00014264,2]
[398503096,1765759838769,-300.0,0.00014264,2]
[398503097,1765759838778,-300.0,0.00014264,2]
[398503098,1765759838787,-300.0,0.00014264,2]
[398503099,1765759838796,-300.0,0.00014264,2]
[398503100,1765759838805,-300.0,0.00014264,2]
[398503101,1765759838815,-300.0,0.00014264,2]
[398503102,1765759838824,-300.0,0.00014264,2]
[398503103,1765759838833,-300.0,0.00014264,2]
[398503104,1765759838843,-500.0,0.00014368,2]
[398503105,1765759838852,-1118.00398876,0.00014368,2]
[398503106,1765759838868,-381.99601124,0.00014368,2]
[398503107,1765759838877,-600.0,0.00014548,2]
[398503108,1765759838887,-501.86511872,0.00014726,2]
[398503109,1765759838896,-574.12855637,0.00014758,2]
[398503110,1765759838905,-250.0,0.00014758,2]
[398503111,1765759838914,-250.0,0.00014758,2]
[398503112,1765759838924,-250.0,0.00014758,2]
[398503113,1765759838933,-250.0,0.00014758,2]
[398503114,1765759838942,-250.0,0.00014758,2]
[398503115,1765759838952,-250.0,0.00014758,2]
[398503116,1765759838962,-250.0,0.00014758,2]
[398503117,1765759838972,-354.50333089,0.00014758,2]
[398503118,1765759838980,-186.994,0.00014766,2]
[398503119,1765759838990,-371.02075501,0.00014766,2]
[398503120,1765759838999,-445294.78196188,0.00014767,2]
[398503123,1765759840683,-8965.26925915,0.00014767,2]
[398503125,1765759840695,-1987.87049881,0.00014767,2]
[398503327,1765759843401,-31418.17967045,0.00014767,2]
[398503328,1765759846345,-496.15,0.00014767,2]
[398503329,1765759846359,-53088.07130126,0.00014767,2]
[398503330,1765759846402,-273741.76484095,0.00014767,2]
[398503331,1765759857542,165.13,7.51e-05,2]
[398503332,1765759857903,330.26,7.868e-05,2]
[398503333,1765759858301,495.4,8.226e-05,2]
[398503334,1765759859146,76.53,8.583e-05,2]
[398503335,1765759859169,584.0,8.583e-05,2]
[398503336,1765759859794,825.66,8.941e-05,2]
[398503337,1765759860034,990.79,9.299e-05,2]
[398503338,1765759860432,1155.93,9.656e-05,2]
[398503339,1765759860827,1321.06,0.00010014,2]
[398503340,1765759861485,1486.19,0.00010372,2]
[398503341,1765759861822,1651.32,0.00010729,2]
[398503342,1765759925598,500.0,0.00013273,2]
[398503343,1765759928006,500.0,0.00013273,2]
[398503344,1765759928559,300.0,0.00013673,2]
[398503345,1765759934287,150.0,7.197e-05,2]
[398503346,1765759934696,150.0,7.539e-05,2]
[398503347,1765759935100,150.0,7.882e-05,2]
[398503348,1765759935629,198.16,8.225e-05,2]
[398503349,1765759936074,36.9,8.567e-05,2]
[398503350,1765759936097,210.8,8.567e-05,2]
[398503351,1765759936475,297.24,8.91e-05,2]
[398503352,1765759936877,346.78,9.253e-05,2]
[398503353,1765759937295,396.32,9.595e-05,2]
[398503354,1765759937715,445.86,9.938e-05,2]
[398503355,1765759938339,495.4,0.00010281,2]
[398503356,1765759973992,5300.0,0.00019,120]
[398503372,1765760007513,150.0,7.14e-05,2]
[398503373,1765760007925,150.0,7.481e-05,2]
[398503374,1765760008345,150.0,7.821e-05,2]
[398503375,1765760008725,150.0,8.161e-05,2]
[398503376,1765760009122,150.0,8.501e-05,2]
[398503377,1765760010067,150.0,8.841e-05,2]
[398503378,1765760039690,5000.0,0.00013678,2]
[398503379,1765760050483,500.0,0.00013273,2]
[398503380,1765760063747,1407.61,0.00013678,2]
[398503381,1765760073989,150.0,7.129e-05,2]
[398503382,1765760074450,150.0,7.468e-05,2]
[398503383,1765760079258,-3592.39,0.00013678,2]
[398503384,1765760086129,2815.23,0.00013678,2]
[398503385,1765760086150,2184.77,0.00013678,2]
[398503386,1765760104513,500.0,0.00013273,2]
[398503387,1765760104541,500.0,0.00013273,2]
[398503388,1765760108747,5000.0,0.00013678,2]
[398503389,1765760132025,1815.24,0.00013678,2]
[398503390,1765760132050,3184.76,0.00013678,2]
[398503391,1765760155012,5000.0,0.00013678,2]
[398503392,1765760165324,300.0,0.00013673,2]
[398503393,1765760166016,500.0,0.00013273,2]
[398503394,1765760169054,463.74942667,0.00013273,2]
[398503395,1765760171246,155.83687899,0.00013239,2]
[398503396,1765760176437,202.43008501,9.277e-05,2]
[398503397,1765760177157,193.23360933,0.00013239,2]
[398503398,1765760177181,9.19647568,0.00013239,2]
[398503399,1765760177411,5000.0,0.00013678,2]
[398503400,1765760200321,4990.81352432,0.00013678,2]
[398503401,1765760200342,9.18647568,0.00013678,2]
[398503402,1765760203153,150.0,7.089e-05,2]
[398503403,1765760203543,167.59,7.427e-05,2]
[398503404,1765760203970,251.38,7.765e-05,2]
[398503405,1765760204396,335.18,8.102e-05,2]
[398503406,1765760204909,418.97,8.44e-05,2]
[398503407,1765760205184,502.76,8.777e-05,2]
[398503408,1765760205808,586.56,9.115e-05,2]
[398503409,1765760206035,670.35,9.453e-05,2]
[398503410,1765760206431,754.15,9.79e-05,2]
[398503411,1765760206863,837.94,0.00010128,2]
[398503412,1765760222271,388.53,0.00012,2]
[398503413,1765760222542,388.53,0.00012,2]
[398503414,1765760222717,4538.88352432,0.00013678,2]
[398503415,1765760222739,461.11647568,0.00013678,2]
[398503416,1765760222844,388.53,0.000121,2]
[398503417,1765760223141,388.53,0.000121,2]
[398503418,1765760223969,500.0,0.00013273,2]
[398503420,1765760233238,388.53,0.000122,2]
[398503421,1765760233550,388.53,0.000122,2]
[398503422,1765760233871,388.53,0.000122,2]
[398503423,1765760234297,388.53,0.000123,2]
[398503424,1765760234457,388.53,0.000123,2]
[398503425,1765760234723,388.53,0.000124,2]
[398503426,1765760235331,388.53,0.000124,2]
[398503427,1765760235441,388.53,0.000125,2]
[398503428,1765760236467,388.53,0.000125,2]
[398503429,1765760237025,388.53,0.000125,2]
[398503430,1765760237101,388.53,0.000126,2]
[398503431,1765760237501,388.53,0.000126,2]
[398503432,1765760237813,388.53,0.000127,2]
[398503433,1765760238159,388.53,0.000127,2]
[398503434,1765760238446,388.53,0.000127,2]
[398503435,1765760238737,388.53,0.000128,2]
[398503436,1765760239273,388.53,0.000128,2]
[398503437,1765760239413,388.53,0.000129,2]
[398503438,1765760239726,388.53,0.000129,2]
[398503439,1765760240072,388.53,0.000129,2]
[398503440,1765760240402,388.53,0.00013,2]
[398503441,1765760240740,102.70352432,0.00013,2]
[398503442,1765760240764,285.82647568,0.00013,2]
[398503443,1765760241078,388.53,0.000131,2]
[398503444,1765760241494,388.53,0.000131,2]
[398503445,1765760241822,388.53,0.000131,2]
[398503446,1765760242202,388.53,0.000132,2]
[398503447,1765760242586,388.53,0.000132,2]
[398503448,1765760242858,388.53,0.000133,2]
[398503449,1765760243158,388.53,0.000133,2]
[398503450,1765760243438,388.53,0.000134,2]
[398503451,1765760243785,388.53,0.000134,2]
[398503452,1765760244467,388.53,0.000134,2]
[398503453,1765760244814,388.53,0.000135,2]
[398503454,1765760245084,5000.0,0.00013559,2]
[398503455,1765760245155,388.53,0.000135,2]
[398503456,1765760252981,-388.53,0.000136,2]
[398503457,1765760253010,-388.53,0.000136,2]
[398503458,1765760253039,-388.53,0.000136,2]
[398503459,1765760260254,5000.0,0.000136,2]
[398503460,1765760268797,5000.0,0.000136,2]
[398503461,1765760276925,5000.0,0.00013669,2]
[398503462,1765760278974,0.01,7.07e-05,2]
[398503463,1765760278997,149.99,7.07e-05,2]
[398503464,1765760279381,150.0,7.407e-05,2]
[398503465,1765760279776,150.0,7.744e-05,2]
[398503466,1765760280178,150.0,8.08e-05,2]
[398503467,1765760280580,150.0,8.417e-05,2]
[398503468,1765760281273,150.0,8.754e-05,2]
[398503469,1765760281439,170.07,9.09e-05,2]
[398503470,1765760282061,194.36,9.427e-05,2]
[398503471,1765760282495,218.66,9.764e-05,2]
[398503472,1765760282894,242.95,0.00010101,2]
[398503473,1765760286207,500.0,0.00013273,2]
[398503474,1765760287520,152.04,0.000111,2]
[398503475,1765760287800,5000.0,0.00013669,2]
[398503476,1765760287864,152.04,0.000112,2]
[398503477,1765760288226,152.04,0.000114,2]
[398503478,1765760289394,300.0,0.00013673,2]
[398503479,1765760289423,500.0,0.00013273,2]
[398503480,1765760289516,152.04,0.000115,2]
[398503481,1765760289552,500.0,0.00013273,2]
[398503482,1765760289619,152.04,0.000116,2]
[398503483,1765760289795,152.04,0.000118,2]
[398503484,1765760290167,152.04,0.000119,2]
[398503485,1765760290442,152.04,0.00012,2]
[398503486,1765760290712,152.04,0.000122,2]
[398503487,1765760290994,152.04,0.000123,2]
[398503488,1765760291276,152.04,0.000124,2]
[398503489,1765760292252,152.04,0.000126,2]
[398503490,1765760292314,500.0,0.00013273,2]
[398503491,1765760292514,152.04,0.000127,2]
[398503492,1765760292848,152.04,0.000128,2]
[398503493,1765760293391,152.04,0.00013,2]
[398503494,1765760293681,152.04,0.000131,2]
[398503495,1765760293952,152.04,0.000132,2]
[398503496,1765760294219,115.33,0.000133,2]
[398503497,1765760294243,36.71,0.000133,2]
[398503498,1765760294498,152.04,0.000135,2]
[398503499,1765760294997,152.04,0.000136,2]
[398503500,1765760296045,5000.0,0.00013678,2]
[398503501,1765760296090,500.0,0.00013273,2]
[398503502,1765760303544,4159.22,0.00013678,2]
[398503503,1765760303568,840.78,0.00013678,2]
[398503504,1765760311577,5000.0,0.00013678,2]
[398503505,1765760319884,4159.23,0.00013678,2]
[398503506,1765760319907,840.77,0.00013678,2]
[398503507,1765760327927,5000.0,0.00013678,2]
[398503508,1765760336232,4159.24,0.00013678,2]
[398503509,1765760336253,840.76,0.00013678,2]
[398503510,1765760344299,152.04,0.000111,2]
[398503511,1765760344615,152.04,0.000126,2]
[398503512,1765760344936,5000.0,0.00013678,2]
[398503513,1765760347819,150.0,7.074e-05,2]
[398503514,1765760352733,3705.17,0.00013678,2]
[398503515,1765760352755,1294.83,0.00013678,2]
[398503516,1765760360936,5000.0,0.00013678,2]
[398503517,1765760368646,3705.18,0.00013678,2]
[398503518,1765760368671,1294.82,0.00013678,2]
[398503519,1765760376689,5000.0,0.00013678,2]
[398503520,1765760384553,3705.19,0.00013678,2]
[398503521,1765760384576,1294.81,0.00013678,2]
[398503522,1765760392618,5000.0,0.00013678,2]
[398503523,1765760400410,3705.2,0.00013678,2]
[398503524,1765760400436,1294.8,0.00013678,2]
[398503525,1765760408505,5000.0,0.00013678,2]
[398503526,1765760408938,500.0,0.00013273,2]
[398503527,1765760411773,300.0,0.00013673,2]
[398503528,1765760412060,500.0,0.00013273,2]
[398503529,1765760415156,500.0,0.00013273,2]
[398503530,1765760416858,1905.21,0.00013678,2]
[398503531,1765760416881,3094.79,0.00013678,2]
[398503532,1765760425400,5000.0,0.00013678,2]
[398503533,1765760432779,1905.22,0.00013678,2]
[398503534,1765760432801,1360.98097639,0.00013678,2]
[398503535,1765760440843,5000.0,0.00013678,2]
[398503536,1765760448649,3639.02902361,0.00013678,2]
[398503537,1765760448672,1360.97097639,0.00013678,2]
[398503538,1765760457231,5000.0,0.00013678,2]
[398503539,1765760463024,500.0,0.00013273,2]
[398503540,1765760465032,3139.03902361,0.00013678,2]
[398503541,1765760465055,1860.96097639,0.00013678,2]
[398503542,1765760473044,5000.0,0.00013678,2]
[398503544,1765760480850,3139.04902361,0.00013678,2]
[398503545,1765760480871,1655.47165705,0.00013678,2]
[398503547,1765760489262,5000.0,0.00013678,2]
[398503548,1765760495972,504.3,0.000133,2]
[398503549,1765760496924,2840.23834295,0.00013678,2]
[398503550,1765760496945,2159.76165705,0.00013678,2]
[398503551,1765760505141,5000.0,0.00013678,2]
[398503552,1765760513147,2840.24834295,0.00013678,2]
[398503553,1765760513171,2159.75165705,0.00013678,2]
[398503554,1765760520971,5000.0,0.00013678,2]
[398503555,1765760527081,500.0,0.00013273,2]
[398503556,1765760530963,300.0,0.00013673,2]
[398503558,1765760531814,500.0,0.00013273,2]
[398503559,1765760534510,500.0,0.00013273,2]
[398503560,1765760549046,1040.25834295,0.00013678,2]
[398503561,1765760549068,3959.74165705,0.00013678,2]
[398503562,1765760550653,-300.0,0.00013698,2]
[398503563,1765760550687,-615.0,0.00013698,2]
[398503564,1765760550717,-1200.0,0.00013698,2]
[398503565,1765760550751,-300.0,0.00013698,2]
[398503566,1765760557777,5000.0,0.00013698,2]
[398503568,1765760574065,170.01,0.00013698,2]
[398503569,1765760574087,4829.99,0.00013698,2]
[398503571,1765760582271,921.20586415,0.00013698,2]
[398503572,1765760582517,300.0,0.00013698,2]
[398503573,1765760584090,500.0,0.00013273,2]
[398503574,1765760596887,-293.60001535,0.00013698,2]
[398503575,1765760597867,5000.0,0.00013698,2]
[398503576,1765760603093,185.93356449,9.277e-05,2]
[398503580,1765760620202,4226.87640481,0.00013698,2]
[398503581,1765760620229,773.12359519,0.00013698,2]
[398503584,1765760642494,300.0,0.00013698,2]
[398503585,1765760642546,5000.0,0.00013698,2]
[398503586,1765760644569,292.0,0.000136,2]
[398503587,1765760651517,300.0,0.00013673,2]
[398503588,1765760651993,500.0,0.00013273,2]
[398503589,1765760654473,500.0,0.00013273,2]
[398503590,1765760664791,2334.88640481,0.00013698,2]
[398503591,1765760664812,2665.11359519,0.00013698,2]
[398503594,1765760668446,166.598701,0.00013447,2]
[398503595,1765760687210,5000.0,0.00013698,2]
[398503596,1765760696373,161.0,0.00013698,2]
[398503597,1765760702855,300.0,0.00013698,2]
[398503598,1765760702931,1443.79518726,0.00013698,2]